fUST/lending_fUST_20260205
["ID","MTS","AMOUNT","RATE_DAILY","PERIOD"]
[404555980,1770286247247,-500.0,0.00061916,120]
[404555981,1770286247257,-500.0,0.00061916,120]
[404555982,1770286247266,-250.0,0.00061916,120]
[404555983,1770286247275,-500.0,0.00061916,120]
[404555984,1770286247285,-250.0,0.00061916,120]
[404555985,1770286247294,-500.0,0.00061916,120]
[404555986,1770286247303,-250.0,0.00061916,120]
[404555987,1770286247313,-500.0,0.00061916,120]
[404555988,1770286247322,-250.0,0.00061916,120]
[404555989,1770286247331,-500.0,0.00061916,120]
[404555990,1770286247340,-250.0,0.00061916,120]
[404555991,1770286247350,-500.0,0.00061916,120]
[404555992,1770286247359,-250.0,0.00061916,120]
[404555993,1770286247369,-334.62591658,0.00061917,120]
[404555994,1770286247378,-546.07,0.00061917,120]
[404555995,1770286247387,-500.0,0.00061917,120]
[404555996,1770286247396,-500.0,0.00061917,120]
[404555997,1770286247406,-1151.3,0.00061917,2]
[404555998,1770286247415,-659.27,0.00061917,120]
[404555999,1770286247424,-500.0,0.00061917,120]
[404556000,1770286247434,-538.73,0.00061917,120]
[404556001,1770286247443,-1003.47,0.00061917,21]
[404556002,1770286247452,-500.0,0.00061917,120]
[404556003,1770286247462,-986.51,0.00061917,120]
[404556004,1770286247471,-538.38,0.00061917,120]
[404556005,1770286247481,-734.66,0.00061917,120]
[404556006,1770286247490,-500.0,0.00061917,120]
[404556007,1770286247500,-561.9,0.00061917,120]
[404556008,1770286247511,-500.0,0.00061917,120]
[404556009,1770286247521,-650.58,0.00061917,120]
[404556010,1770286247533,-733.25,0.00062,14]
[404556011,1770286247542,-546.07,0.00062465,120]
[404556012,1770286247551,-500.0,0.00062465,120]
[404556013,1770286247560,-500.0,0.00062465,120]
[404556014,1770286247569,-1151.3,0.00062465,2]
[404556015,1770286247578,-659.27,0.00062465,120]
[404556016,1770286247588,-500.0,0.00062465,120]
[404556017,1770286247597,-538.73,0.00062465,120]
[404556018,1770286247606,-1003.47,0.00062465,21]
[404556019,1770286247616,-500.0,0.00062465,120]
[404556020,1770286247626,-986.51,0.00062465,120]
[404556021,1770286247635,-538.38,0.00062465,120]
[404556022,1770286247644,-734.66,0.00062465,120]
[404556023,1770286247654,-500.0,0.00062465,120]
[404556024,1770286247663,-561.9,0.00062465,120]
[404556025,1770286247673,-500.0,0.00062465,120]
[404556026,1770286247683,-650.58,0.00062465,120]
[404556027,1770286247692,-500.0,0.00062937,120]
[404556028,1770286247701,-546.07,0.00063013,120]
[404556029,1770286247712,-524.11805058,0.00063013,120]
[404556030,1770286247722,-500.0,0.00063013,120]
[404556031,1770286247731,-1151.3,0.00063013,2]
[404556032,1770286247740,-659.27,0.00063013,120]
[404556033,1770286247750,-500.0,0.00063013,120]
[404556034,1770286247760,-538.73,0.00063013,120]
[404556035,1770286247769,-1003.47,0.00063013,21]
[404556036,1770286247778,-500.0,0.00063013,120]
[404556037,1770286247787,-986.51,0.00063013,120]
[404556038,1770286247796,-538.38,0.00063013,120]
[404556039,1770286247805,-734.66,0.00063013,120]
[404556040,1770286247815,-500.0,0.00063013,120]
[404556041,1770286247824,-561.9,0.00063013,120]
[404556042,1770286247835,-500.0,0.00063013,120]
[404556043,1770286247848,-650.58,0.00063013,120]
[404556044,1770286247858,-151.0,0.00063014,120]
[404556045,1770286247868,-151.0,0.00063014,120]
[404556046,1770286247877,-151.0,0.00063014,120]
[404556047,1770286247889,-264.962399,0.00063014,120]
[404556048,1770286247898,-735.8322496,0.0006309,5]
[404556049,1770286247908,-151.0,0.000631,120]
[404556050,1770286247918,-151.0,0.000631,120]
[404556051,1770286247928,-151.0,0.000631,120]
[404556052,1770286247937,-153.0,0.000635,120]
[404556053,1770286247947,-487.0,0.000635,120]
[404556054,1770286247958,-570.85,0.000635,120]
[404556055,1770286247967,-546.07,0.00063561,120]
[404556056,1770286247977,-500.0,0.00063561,120]
[404556057,1770286247986,-1151.3,0.00063561,2]
[404556058,1770286247995,-659.27,0.00063561,120]
[404556059,1770286248004,-500.0,0.00063561,120]
[404556060,1770286248013,-538.73,0.00063561,120]
[404556061,1770286248022,-1003.47,0.00063561,21]
[404556062,1770286248032,-500.0,0.00063561,120]
[404556063,1770286248041,-986.51,0.00063561,120]
[404556064,1770286248051,-538.38,0.00063561,120]
[404556065,1770286248060,-734.66,0.00063561,120]
[404556066,1770286248069,-749.452221,0.00063561,120]
[404556067,1770286248078,-749.452221,0.00063561,120]
[404556068,1770286248088,-749.452221,0.00063561,120]
[404556069,1770286248097,-749.452221,0.00063561,120]
[404556070,1770286248106,-500.0,0.00063561,120]
[404556071,1770286248116,-561.9,0.00063561,120]
[404556072,1770286248125,-151.0,0.00063561,120]
[404556073,1770286248135,-500.0,0.00063561,120]
[404556074,1770286248144,-151.0,0.00063561,120]
[404556075,1770286248153,-151.0,0.00063561,120]
[404556076,1770286248164,-650.58,0.00063561,120]
[404556077,1770286248173,-546.07,0.00064109,120]
[404556078,1770286248182,-1151.3,0.00064109,2]
[404556079,1770286248191,-659.27,0.00064109,120]
[404556080,1770286248200,-500.0,0.00064109,120]
[404556081,1770286248214,-538.73,0.00064109,120]
[404556082,1770286248225,-1003.47,0.00064109,21]
[404556083,1770286248235,-500.0,0.00064109,120]
[404556084,1770286248244,-986.51,0.00064109,120]
[404556085,1770286248254,-538.38,0.00064109,120]
[404556086,1770286248263,-734.66,0.00064109,120]
[404556087,1770286248273,-500.0,0.00064109,120]
[404556088,1770286248283,-561.9,0.00064109,120]
[404556089,1770286248292,-500.0,0.00064109,120]
[404556090,1770286248302,-650.58,0.00064109,120]
[404556091,1770286248312,-49399.56982211,0.000642,14]
[404556092,1770286248407,-50.53263622,0.000642,14]
[404556093,1770286248462,-500.0,0.00054794,120]
[404556094,1770286248471,-500.0,0.00054794,120]
[404556095,1770286248480,-500.0,0.00055342,120]
[404556096,1770286248489,-552.39025015,0.00055342,120]
[404556097,1770286248498,-500.0,0.0005589,120]
[404556098,1770286248507,-500.0,0.00056438,120]
[404556099,1770286248516,-500.0,0.00056986,120]
[404556100,1770286248526,-12002.40754167,0.000642,14]
[404556101,1770286248535,-613.85103347,0.00064571,120]
[404556102,1770286248544,-546.07,0.00064657,120]
[404556103,1770286248553,-1151.3,0.00064657,2]
[404556104,1770286248562,-659.27,0.00064657,120]
[404556105,1770286248571,-221.41491382,0.00064657,120]
[404556106,1770286248581,-538.73,0.00064657,120]
[404556107,1770286248590,-1003.47,0.00064657,21]
[404556108,1770286248599,-500.0,0.00064657,120]
[404556109,1770286248608,-986.51,0.00064657,120]
[404556110,1770286248617,-538.38,0.00064657,120]
[404556111,1770286248626,-473.82342018,0.00064657,120]
[404556112,1770286248700,-260.83657982,0.00064657,120]
[404556113,1770286248710,-500.0,0.00064657,120]
[404556114,1770286248719,-561.9,0.00064657,120]
[404556115,1770286248728,-500.0,0.00064657,120]
[404556116,1770286248737,-650.58,0.00064657,120]
[404556117,1770286248746,-367.9161248,0.00065195,5]
[404556118,1770286248755,-546.07,0.00065205,120]
[404556119,1770286248764,-1151.3,0.00065205,2]
[404556120,1770286248774,-659.27,0.00065205,120]
[404556121,1770286248783,-538.73,0.00065205,120]
[404556122,1770286248791,-1003.47,0.00065205,21]
[404556123,1770286248800,-500.0,0.00065205,120]
[404556124,1770286248810,-986.51,0.00065205,120]
[404556125,1770286248819,-538.38,0.00065205,120]
[404556126,1770286248829,-734.66,0.00065205,120]
[404556127,1770286248842,-500.0,0.00065205,120]
[404556128,1770286248851,-561.9,0.00065205,120]
[404556129,1770286248860,-597.80160047,0.00065205,120]
[404556130,1770286248869,-151.0,0.00065205,120]
[404556131,1770286248880,-151.0,0.00065205,120]
[404556132,1770286248889,-650.58,0.00065205,120]
[404556133,1770286248898,-500.0,0.00065539,120]
[404556134,1770286248908,-153.0,0.000657,120]
[404556135,1770286248917,-546.07,0.00065753,120]
[404556136,1770286248926,-1151.3,0.00065753,2]
[404556137,1770286248935,-659.27,0.00065753,120]
[404556138,1770286248945,-538.73,0.00065753,120]
[404556139,1770286248954,-1003.47,0.00065753,21]
[404556140,1770286248963,-500.0,0.00065753,120]
[404556141,1770286248973,-986.51,0.00065753,120]
[404556142,1770286248982,-538.38,0.00065753,120]
[404556143,1770286248992,-734.66,0.00065753,120]
[404556144,1770286249001,-500.0,0.00065753,120]
[404556145,1770286249010,-561.9,0.00065753,120]
[404556146,1770286249020,-650.58,0.00065753,120]
[404556147,1770286249029,-660.5,0.00065831,120]
[404556148,1770286249039,-369.0,0.00065831,120]
[404556149,1770286249048,-546.07,0.00066301,120]
[404556150,1770286249058,-1151.3,0.00066301,2]
[404556151,1770286249067,-659.27,0.00066301,120]
[404556152,1770286249075,-538.73,0.00066301,120]
[404556153,1770286249087,-1003.47,0.00066301,21]
[404556154,1770286249096,-500.0,0.00066301,120]
[404556155,1770286249105,-986.51,0.00066301,120]
[404556156,1770286249115,-538.38,0.00066301,120]
[404556157,1770286249124,-734.66,0.00066301,120]
[404556158,1770286249134,-500.0,0.00066301,120]
[404556159,1770286249143,-561.9,0.00066301,120]
[404556160,1770286249153,-650.58,0.00066301,120]
[404556161,1770286249162,-546.07,0.00066849,120]
[404556162,1770286249171,-157.080433,0.00066849,120]
[404556163,1770286249180,-151.0,0.00066849,120]
[404556164,1770286249190,-1151.3,0.00066849,2]
[404556165,1770286249200,-659.27,0.00066849,120]
[404556166,1770286249215,-538.73,0.00066849,120]
[404556167,1770286249224,-1003.47,0.00066849,21]
[404556168,1770286249235,-986.51,0.00066849,120]
[404556169,1770286249244,-538.38,0.00066849,120]
[404556170,1770286249254,-734.66,0.00066849,120]
[404556171,1770286249264,-489.8,0.00066849,120]
[404556172,1770286249274,-561.9,0.00066849,120]
[404556173,1770286249283,-650.58,0.00066849,120]
[404556174,1770286249293,-733.25,0.000669,14]
[404556175,1770286249302,-546.26631149,0.00067397,120]
[404556176,1770286249311,-285.791981,0.00067397,120]
[404556177,1770286249321,-1151.52280093,0.00067397,2]
[404556178,1770286249330,-659.43432954,0.00067397,120]
[404556179,1770286249340,-538.87839971,0.00067397,120]
[404556180,1770286249349,-1003.62620674,0.00067397,21]
[404556181,1770286249359,-986.5416334,0.00067397,120]
[404556182,1770286249368,-538.43,0.00067397,120]
[404556183,1770286249377,-734.73440646,0.00067397,120]
[404556184,1770286249387,-562.1,0.00067397,120]
[404556185,1770286249396,-650.66,0.00067397,120]
[404556186,1770286249406,-500.0,0.00067579,120]
[404556187,1770286249415,-864.0,0.00067626,120]
[404556188,1770286249425,-1100.0,0.000679,120]
[404556189,1770286249434,-153.0,0.00068,120]
[404556190,1770286249444,-999.0,0.00068493,120]
[404556191,1770286249453,-500.0,0.00068493,120]
[404556192,1770286249462,-500.0,0.00068493,120]
[404556193,1770286249471,-558.60415774,0.00068493,120]
[404556194,1770286249480,-231.85309287,0.00068493,2]
[404556195,1770286249490,-781.0,0.000688,30]
[404556196,1770286249499,-1107.26383152,0.0007,120]
[404556197,1770286249508,-153.0,0.000702,120]
[404556198,1770286249518,-500.0,0.00070723,120]
[404556199,1770286249527,-1031.0850041,0.00070994,6]
[404556200,1770286249536,-61452.51,0.00071,14]
[404556201,1770286249545,-153.0,0.000725,120]
[404556202,1770286249554,-1444.0,0.00072603,120]
[404556203,1770286249563,-367.9161248,0.00073752,6]
[404556204,1770286249573,-1000.0,0.00074388,120]
[404556205,1770286249582,-1329.337737,0.00074437,120]
[404556206,1770286249591,-153.0,0.000747,120]
[404556207,1770286249600,-733.25,0.000747,14]
[404556208,1770286249609,-500.0,0.00075229,120]
[404556209,1770286249619,-1878.471888,0.00075582,120]
[404556210,1770286249628,-2094.530874,0.00075582,120]
[404556211,1770286249637,-4086.26320637,0.00075796,2]
[404556212,1770286249647,-162.29983392,0.00076712,2]
[404556213,1770286249656,-157.0,0.00077,120]
[404556214,1770286249665,-170.0,0.0008,120]
[404556215,1770286249674,-455.65052263,0.0008,60]
[404556216,1770286249683,-170.37903869,0.00080822,7]
[404556217,1770286249692,-392.66127152,0.000809,30]
[404556218,1770286249701,-800.0,0.00081355,90]
[404556219,1770286249710,-800.0,0.00081398,90]
[404556220,1770286249720,-800.0,0.00081401,90]
[404556221,1770286249730,-591.11441809,0.00081466,90]
[404556222,1770286249739,-800.0,0.00081485,90]
[404556223,1770286249748,-800.0,0.00081512,90]
[404556224,1770286249757,-800.0,0.00081545,90]
[404556225,1770286249767,-800.0,0.00081558,90]
[404556226,1770286249776,-800.0,0.00081573,90]
[404556227,1770286249785,-800.0,0.00081607,90]
[404556228,1770286249795,-800.0,0.00081617,90]
[404556229,1770286249804,-800.0,0.00081628,90]
[404556230,1770286249813,-800.0,0.0008163,90]
[404556231,1770286249822,-800.0,0.0008165,90]
[404556232,1770286249832,-800.0,0.00081726,90]
[404556233,1770286249844,-800.0,0.00081779,90]
[404556234,1770286249853,-800.0,0.00081786,90]
[404556235,1770286249863,-1000.0,0.00081827,120]
[404556236,1770286249872,-244.0,0.00081827,120]
[404556237,1770286249881,-800.0,0.00081834,90]
[404556238,1770286249890,-800.0,0.00081912,90]
[404556239,1770286249900,-800.0,0.0008193,90]
[404556240,1770286249909,-150.0,0.00081986,120]
[404556241,1770286249918,-166.0,0.00082,120]
[404556242,1770286249927,-30711.09711139,0.00082,14]
[404556243,1770286249940,-1369.00834459,0.00082,14]
[404556244,1770286250060,-500.0,0.00057534,120]
[404556245,1770286250070,-8656.84079508,0.00082,14]
[404556255,1770286425715,926.0,0.00039912,120]
[404556258,1770286645248,167.81,0.00039979,90]
[404556279,1770287242065,317.86592593,0.00039955,30]
[404556283,1770287256144,152.86315677,0.00039955,120]
[404556286,1770287286040,162.05082949,0.00039955,120]
[404556287,1770287292587,203.2270395,0.00039955,120]
[404556288,1770287295847,165.47085185,0.00039955,30]
[404556289,1770287305692,162.24445234,0.00039955,30]
[404556290,1770287311760,325.14967276,0.00039955,120]
[404556291,1770287312872,213.02683704,0.00039955,120]
[404556292,1770287314144,159.58449368,0.00039955,120]
[404556293,1770287314986,259.56156764,0.00039955,60]
[404556294,1770287320038,432.22945664,0.00039955,120]
[404556295,1770287322712,215.04245467,0.00039955,30]
[404556296,1770287323437,214.88725439,0.00039955,31]
[404556297,1770287354150,-150.10285153,0.00017808,2]
[404556298,1770287354175,-150.0,0.00018733,2]
[404556299,1770287354198,-177.0,0.00020733,2]
[404556300,1770287354222,-204.0,0.00022733,2]
[404556301,1770287354245,-784.64930823,0.0002465,2]
[404556302,1770287354269,-231.0,0.00024733,2]
[404556303,1770287354294,-4132.21338176,0.00024733,2]
[404556304,1770287354434,-682.66711373,0.00025999,2]
[404556359,1770287431683,-571.43549583,0.00024953,10]
[404556420,1770287437844,-71.25580897,0.00024953,10]
[404556421,1770287437854,-317.33288627,0.00025999,2]
[404556422,1770287437864,-258.0,0.00026733,2]
[404556423,1770287437873,-221.46739067,0.00026749,2]
[404556424,1770287437883,-662.68800707,0.00027,2]
[404556425,1770287437895,-337.31199293,0.00027,2]
[404556426,1770287437905,-1000.0,0.00027179,30]
[404556427,1770287437915,-157.94881909,0.00027397,5]
[404556428,1770287437923,-150.0,0.00027397,5]
[404556429,1770287437933,-150.0,0.00027397,5]
[404556430,1770287437943,-821.306162,0.00027508,2]
[404556431,1770287437952,-501.18204101,0.00027945,2]
[404556432,1770287437962,-250.0,0.00027945,5]
[404556433,1770287437971,-250.0,0.00027945,5]
[404556434,1770287437981,-300.0,0.00028492,2]
[404556435,1770287437990,-350.0,0.00028493,5]
[404556436,1770287437999,-350.0,0.00028493,5]
[404556437,1770287438008,-285.0,0.00028733,2]
[404556438,1770287438018,-1750.50263024,0.00029,2]
[404556439,1770287438027,-450.0,0.00029041,5]
[404556440,1770287438036,-450.0,0.00029041,5]
[404556441,1770287438046,-550.0,0.00029589,5]
[404556442,1770287438055,-550.0,0.00029589,5]
[404556443,1770287438065,-242.0,0.0003,2]
[404556444,1770287438076,-650.0,0.00030137,5]
[404556445,1770287438086,-650.0,0.00030137,5]
[404556446,1770287438096,-741.26793723,0.00030471,2]
[404556447,1770287438105,-213.02063015,0.00030679,2]
[404556448,1770287438115,-500.0,0.00030679,2]
[404556449,1770287438124,-500.0,0.00030679,2]
[404556450,1770287438134,-500.0,0.00030679,2]
[404556451,1770287438144,-190.91008015,0.00030679,2]
[404556452,1770287438154,-500.0,0.00030679,2]
[404556453,1770287438168,-410.04308934,0.00030679,2]
[404556454,1770287438178,-233.93797723,0.00030679,2]
[404556455,1770287438187,-500.0,0.00030679,2]
[404556456,1770287438197,-500.0,0.00030679,2]
[404556457,1770287438207,-500.0,0.00030679,2]
[404556458,1770287438216,-500.0,0.00030679,2]
[404556459,1770287438226,-603.88219611,0.00030685,5]
[404556460,1770287438237,-604.09772998,0.00030685,5]
[404556461,1770287438247,-312.0,0.00030733,2]
[404556462,1770287438256,-420.0,0.00030756,2]
[404556463,1770287438266,-16939.04071263,0.00031144,2]
[404556866,1770287444146,-1156.84812306,0.00031144,2]
[404556905,1770287446078,-2008.39973251,0.00031144,2]
[404556906,1770287446088,-339.0,0.00032733,2]
[404556907,1770287446098,-185.13325042,0.00032763,33]
[404556908,1770287446107,-180.0,0.000332,2]
[404556909,1770287446118,-366.0,0.00034733,120]
[404556910,1770287446127,-3601.7111317,0.0003479,5]
[404556914,1770287538620,-778.43057978,0.00024953,10]
[404556966,1770288632039,-778.43057978,0.00022794,10]
[404556968,1770288632049,-150.0,0.00022909,2]
[404556970,1770288632058,-1001.60909529,0.00023024,10]
[404556972,1770288632070,-101.2262365,0.00023024,10]
[404556974,1770288632078,-945.17221883,0.00023257,2]
[404556977,1770288632098,-534.54761844,0.00023257,2]
[404556980,1770288632109,-488.93656277,0.00023257,2]
[404556984,1770288632119,-1309.88506981,0.00023257,2]
[404557031,1770288638056,-324.718244,0.00023257,2]
[404557032,1770288638065,-177.0,0.00024909,2]
[404557033,1770288638074,-204.0,0.00026909,2]
[404557034,1770288638083,-300.0,0.00028285,2]
[404557035,1770288638093,-2000.04,0.00028286,2]
[404557036,1770288638102,-231.0,0.00028909,2]
[404557037,1770288638111,-500.0,0.00029383,2]
[404557039,1770288638121,-156.67145437,0.00029383,2]
[404557040,1770288638130,-310.39592064,0.00029383,2]
[404557041,1770288638139,-276.31376793,0.00029383,2]
[404557042,1770288638150,-83.01267399,0.00029383,2]
[404557043,1770288638159,-195.61507137,0.00029383,2]
[404557044,1770288638168,-1477.01709502,0.00029384,2]
[404557045,1770288638273,-249.50433383,0.00029384,2]
[404557077,1770288640318,-442.58507751,0.00029384,2]
[404557079,1770288640329,-13724.57604144,0.00029384,2]
[404557081,1770288640338,-741.26793723,0.0003049,2]
[404557082,1770288640347,-258.0,0.00030909,2]
[404557084,1770288640356,-285.0,0.00032909,120]
[404557086,1770288640367,-155.73182908,0.000332,117]
[404557088,1770288640376,-300.0,0.00033242,2]
[404557090,1770288640384,-172.261317,0.000346,2]
[404557092,1770288640393,-16396.78886929,0.0003479,5]
[404557094,1770288640402,-312.0,0.00034909,120]
[404557096,1770288640411,-278.9551907,0.00036889,2]
[404557098,1770288640420,-339.0,0.00036909,120]
[404557100,1770288640429,-172.261317,0.00038242,2]
[404557103,1770288640438,-519.42124826,0.00038981,2]
[404557106,1770288640447,-204.72505301,0.00039678,12]
[404557108,1770288640455,-3603.25971385,0.00039696,2]
[404557109,1770288640465,-4051.22191478,0.00039768,3]
[404557111,1770288640477,-83519.22899731,0.00039778,2]
[404557547,1770288644588,-132.89046235,0.00039778,2]
[404557611,1770288645166,-5812.96604518,0.00039778,2]
[404557663,1770288646232,-1728.69867037,0.00039778,2]
[404557664,1770288646243,-10118.10830575,0.00039778,2]
[404557665,1770288646253,-207.78325194,0.00039778,2]
[404557666,1770288646262,-9000.0,0.00039955,5]
[404557667,1770288646271,-916.649,0.00040099,2]
[404557668,1770288646280,-863.056,0.00040099,2]
[404557669,1770288646289,-500.0,0.00041096,31]
[404557670,1770288646298,-603.52027931,0.00041096,31]
[404557671,1770288646307,-821.306162,0.00041262,2]
[404557672,1770288646316,-172.261317,0.00041883,2]
[404557673,1770288646324,-374.00985349,0.00044755,2]
[404557674,1770288646333,-464.90371908,0.00044755,2]
[404557675,1770288646343,-994.1656,0.00049516,120]
[404557676,1770288646351,-778.41007145,0.000496,120]
[404557677,1770288646360,-151.0,0.00050136,30]
[404557678,1770288646369,-151.0,0.00050821,32]
[404557679,1770288646378,-151.0,0.00051506,34]
[404557680,1770288646387,-151.0,0.00052191,36]
[404557681,1770288646396,-151.0,0.00052876,38]
[404557682,1770288646405,-500.0,0.00053425,120]
[404557683,1770288646414,-150.0,0.00053425,120]
[404557684,1770288646423,-150.0,0.00053425,120]
[404557685,1770288646432,-500.0,0.00053425,120]
[404557686,1770288646441,-285.45081826,0.00053425,120]
[404557687,1770288646450,-500.0,0.00053425,120]
[404557688,1770288646459,-500.0,0.00053425,120]
[404557689,1770288646467,-500.0,0.00053425,120]
[404557690,1770288646476,-500.0,0.00053425,120]
[404557691,1770288646488,-500.0,0.00053425,120]
[404557692,1770288646497,-500.0,0.00053425,120]
[404557693,1770288646506,-500.0,0.00053425,120]
[404557694,1770288646515,-500.0,0.00053425,120]
[404557695,1770288646524,-343.81100892,0.00053425,120]
[404557710,1770289557748,5305.31663782,0.00039954,90]
[404557713,1770289753094,-3034.05015169,0.00026849,2]
[404557714,1770289753113,-500.0,0.00027397,5]
[404557715,1770289753133,-1002.92671423,0.00027945,5]
[404557716,1770289753152,-741.26793723,0.00030559,2]
[404557717,1770289753172,-4000.0,0.00035133,120]
[404557718,1770289753190,-200.04,0.0003526,2]
[404557719,1770289753209,-1000.0,0.00036502,30]
[404557720,1770289753227,-414.0,0.0004,30]
[404557721,1770289753246,-233.125,0.00041254,2]
[404557722,1770289753265,-247.381,0.00041254,2]
[404557723,1770289753284,-268.359,0.00041254,2]
[404557724,1770289753302,-632.0,0.00041254,2]
[404557725,1770289753323,-3034.05015169,0.00043165,2]
[404557726,1770289753342,-151.0,0.00053424,30]
[404557727,1770289753360,-500.0,0.00053425,120]
[404557728,1770289753379,-500.0,0.00053425,120]
[404557729,1770289753398,-500.0,0.00053425,120]
[404557730,1770289753417,-520.55648968,0.00053425,120]
[404557731,1770289753436,-500.0,0.00053425,120]
[404557732,1770289753455,-500.0,0.00053425,120]
[404557733,1770289753474,-500.0,0.00053425,120]
[404557734,1770289753494,-511.31310307,0.00053425,120]
[404557735,1770289753513,-500.0,0.00053425,120]
[404557736,1770289753532,-500.0,0.00053425,120]
[404557737,1770289753550,-500.0,0.00053425,120]
[404557738,1770289753569,-282.228403,0.00053425,120]
[404557739,1770289753590,-500.0,0.00053425,120]
[404557740,1770289753611,-500.0,0.00053425,120]
[404557741,1770289753630,-500.0,0.00053425,120]
[404557742,1770289753650,-500.0,0.00053425,120]
[404557743,1770289753669,-500.0,0.00053425,120]
[404557744,1770289753689,-500.0,0.00053425,120]
[404557745,1770289753708,-500.0,0.00053425,120]
[404557746,1770289753727,-464.79499772,0.00053425,120]
[404557747,1770289756261,-35.20500228,0.00053425,120]
[404557748,1770289756281,-500.0,0.00053425,120]
[404557749,1770289756301,-500.0,0.00053425,120]
[404557750,1770289756320,-500.0,0.00053425,120]
[404557751,1770289756339,-500.0,0.00053425,120]
[404557752,1770289756359,-500.0,0.00053425,120]
[404557753,1770289756377,-500.0,0.00053425,120]
[404557754,1770289756480,-500.0,0.00053425,120]
[404557755,1770289756499,-500.0,0.00053425,120]
[404557756,1770289756518,-500.0,0.00053425,120]
[404557757,1770289756537,-500.0,0.00053425,120]
[404557758,1770289756558,-500.0,0.00053425,120]
[404557759,1770289756577,-500.0,0.00053425,120]
[404557760,1770289756596,-500.0,0.00053425,120]
[404557761,1770289756614,-500.0,0.00053425,120]
[404557762,1770289756637,-258.36884435,0.00053425,120]
[404557763,1770289756656,-500.0,0.00053425,120]
[404557764,1770289756675,-500.0,0.00053425,120]
[404557765,1770289756693,-500.0,0.00053425,120]
[404557766,1770289756711,-500.0,0.00053425,120]
[404557767,1770289756731,-500.0,0.00053425,120]
[404557768,1770289756751,-500.0,0.00053425,120]
[404557769,1770289756773,-500.0,0.00053425,120]
[404557770,1770289756792,-500.0,0.00053425,120]
[404557771,1770289756814,-500.0,0.00053425,120]
[404557772,1770289756833,-500.0,0.00053425,120]
[404557773,1770289756854,-500.0,0.00053425,120]
[404557774,1770289756875,-562.17527266,0.00053425,120]
[404557775,1770289756894,-500.0,0.00053425,120]
[404557776,1770289756913,-500.0,0.00053425,120]
[404557777,1770289756932,-500.0,0.00053425,120]
[404557778,1770289756951,-151.0,0.00054109,32]
[404557779,1770289756970,-2627.4501851,0.00054784,4]
[404557780,1770289756989,-1814.32,0.00054784,30]
[404557781,1770289757008,-1511.93,0.00054784,30]
[404557782,1770289757028,-1259.94,0.00054784,30]
[404557783,1770289757049,-1049.95,0.00054784,30]
[404557784,1770289757069,-874.96,0.00054784,30]
[404557785,1770289757091,-729.14,0.00054784,30]
[404557786,1770289757112,-607.61,0.00054784,30]
[404557787,1770289757132,-506.34,0.00054784,30]
[404557788,1770289757151,-421.95,0.00054784,30]
[404557789,1770289757171,-351.63,0.00054784,30]
[404557790,1770289757190,-293.02,0.00054784,30]
[404557791,1770289757211,-244.19,0.00054784,30]
[404557792,1770289757232,-203.49,0.00054784,30]
[404557793,1770289757252,-169.57,0.00054784,30]
[404557794,1770289757271,-847.9,0.00054784,30]